[Event "Late-Titled-Tuesday-Blitz-May-28-2024"]
[Site "Chess.com"]
[Date "2024.05.28"]
[Round "8"]
[White "Bilan_Danila"]
[Black "jcmesafischer"]
[Result "1-0"]
[WhiteElo "2568"]
[BlackElo "2369"]
[TimeControl "180+1"]
[EndTime "15:28:47 PDT"]
[Termination "Bilan_Danila won by resignation"]

1. d4 {[%clk 0:03:00.9]} 1... Nf6 {[%clk 0:02:47.7]} 2. Nf3 {[%clk 0:03:00.4]}
2... d5 {[%clk 0:02:46.9]} 3. c4 {[%clk 0:03:00]} 3... e6 {[%clk 0:02:38.5]} 4.
Nc3 {[%clk 0:02:58.9]} 4... Be7 {[%clk 0:02:27.6]} 5. Bg5 {[%clk 0:02:57.8]}
5... Nbd7 {[%clk 0:02:24.2]} 6. e3 {[%clk 0:02:57.5]} 6... O-O {[%clk
0:02:15.9]} 7. Bd3 {[%clk 0:02:55.9]} 7... c6 {[%clk 0:02:14.9]} 8. O-O {[%clk
0:02:53.5]} 8... dxc4 {[%clk 0:02:14.1]} 9. Bxc4 {[%clk 0:02:54.4]} 9... b5
{[%clk 0:02:14.8]} 10. Bb3 {[%clk 0:02:48.8]} 10... a6 {[%clk 0:02:15.7]} 11.
Ne5 {[%clk 0:02:28.5]} 11... Nxe5 {[%clk 0:02:09]} 12. dxe5 {[%clk 0:02:29.4]}
12... Nd7 {[%clk 0:02:05.4]} 13. Bxe7 {[%clk 0:02:21.9]} 13... Qxe7 {[%clk
0:02:04.9]} 14. f4 {[%clk 0:02:22.8]} 14... c5 {[%clk 0:01:59.8]} 15. Ne4 {[%clk
0:02:16.5]} 15... Bb7 {[%clk 0:01:58.1]} 16. Nd6 {[%clk 0:02:16.7]} 16... Bc6
{[%clk 0:01:56.3]} 17. Rc1 {[%clk 0:02:02.3]} 17... f6 {[%clk 0:01:41.8]} 18.
Nf5 {[%clk 0:01:01]} 18... Qe8 {[%clk 0:01:27.2]} 19. Qd6 {[%clk 0:00:47.3]}
19... c4 {[%clk 0:01:20.8]} 20. Qxc6 {[%clk 0:00:33.4]} 20... exf5 {[%clk
0:01:15]} 21. e6 {[%clk 0:00:16.6]} 21... Nc5 {[%clk 0:00:52.2]} 22. Qxc5 {[%clk
0:00:14.1]} 22... cxb3 {[%clk 0:00:51.8]} 23. Qd5 {[%clk 0:00:10.4]} 23... bxa2
{[%clk 0:00:44.5]} 24. Qxa2 {[%clk 0:00:10.3]} 24... Qe7 {[%clk 0:00:41.3]} 25.
Rc6 {[%clk 0:00:09.8]} 25... a5 {[%clk 0:00:34.1]} 26. Rfc1 {[%clk 0:00:09.8]}
26... Ra7 {[%clk 0:00:29.9]} 27. Qd5 {[%clk 0:00:07.7]} 27... g6 {[%clk
0:00:20.5]} 28. Rd6 {[%clk 0:00:06]} 28... Kg7 {[%clk 0:00:13]} 29. Rd7 {[%clk
0:00:06.2]} 29... Rxd7 {[%clk 0:00:12.1]} 30. Qxd7 {[%clk 0:00:06.6]} 30... Qxd7
{[%clk 0:00:11.7]} 31. exd7 {[%clk 0:00:07.5]} 31... Rd8 {[%clk 0:00:12.2]} 32.
Rc7 {[%clk 0:00:08.2]} 32... Kf7 {[%clk 0:00:11.5]} 33. Ra7 {[%clk 0:00:07.2]}
33... a4 {[%clk 0:00:10.5]} 34. Rb7 {[%clk 0:00:06.4]} 34... Ke7 {[%clk
0:00:11]} 35. Rxb5 {[%clk 0:00:05.9]} 35... Rxd7 {[%clk 0:00:11.7]} 36. Rb4
{[%clk 0:00:05.9]} 36... Rd2 {[%clk 0:00:10.3]} 37. Rxa4 {[%clk 0:00:06]} 37...
Rxb2 {[%clk 0:00:10.4]} 38. Ra7+ {[%clk 0:00:06.7]} 38... Ke6 {[%clk 0:00:10.3]}
39. Rxh7 {[%clk 0:00:07.4]} 39... Re2 {[%clk 0:00:10.8]} 40. Rh8 {[%clk
0:00:07.1]} 40... Rxe3 {[%clk 0:00:09.8]} 41. Re8+ {[%clk 0:00:07.2]} 41... Kf7
{[%clk 0:00:10]} 42. Rxe3 {[%clk 0:00:08.1]} 1-0

[Event "Late-Titled-Tuesday-Blitz-May-28-2024"]
[Site "Chess.com"]
[Date "2024.05.28"]
[Round "8"]
[White "norwaytoadog"]
[Black "robertoalejandro10"]
[Result "0-1"]
[WhiteElo "2312"]
[BlackElo "2481"]
[TimeControl "180+1"]
[EndTime "15:28:48 PDT"]
[Termination "robertoalejandro10 won on time"]

1. e4 {[%clk 0:03:00.1]} 1... c5 {[%clk 0:02:55.7]} 2. Nf3 {[%clk 0:02:59.8]}
2... g6 {[%clk 0:02:55.5]} 3. c3 {[%clk 0:02:59.3]} 3... d5 {[%clk 0:02:55.2]}
4. e5 {[%clk 0:02:57]} 4... d4 {[%clk 0:02:53.3]} 5. Bc4 {[%clk 0:02:53.2]} 5...
Bg7 {[%clk 0:02:47.6]} 6. h3 {[%clk 0:02:50]} 6... Nc6 {[%clk 0:02:47.9]} 7. Qe2
{[%clk 0:02:47.1]} 7... Nh6 {[%clk 0:02:44.2]} 8. d3 {[%clk 0:02:29.4]} 8... O-O
{[%clk 0:02:42.8]} 9. Bf4 {[%clk 0:02:20.5]} 9... Kh8 {[%clk 0:02:42.8]} 10.
Nbd2 {[%clk 0:02:16.3]} 10... Na5 {[%clk 0:02:24]} 11. O-O {[%clk 0:02:03.8]}
11... Nxc4 {[%clk 0:02:22.8]} 12. Nxc4 {[%clk 0:02:01.5]} 12... b5 {[%clk
0:02:12.9]} 13. Ncd2 {[%clk 0:02:01.4]} 13... Bb7 {[%clk 0:02:06.1]} 14. cxd4
{[%clk 0:01:59.6]} 14... cxd4 {[%clk 0:02:05.5]} 15. Ne4 {[%clk 0:01:55.2]}
15... f6 {[%clk 0:01:33.6]} 16. Bh2 {[%clk 0:01:18.6]} 16... Nf7 {[%clk
0:01:07]} 17. Nc5 {[%clk 0:01:08.8]} 17... Bxf3 {[%clk 0:00:55.7]} 18. Qxf3
{[%clk 0:01:08.7]} 18... Nxe5 {[%clk 0:00:55.4]} 19. Bxe5 {[%clk 0:01:07.3]}
19... fxe5 {[%clk 0:00:55.3]} 20. Qg3 {[%clk 0:00:59.6]} 20... Qd5 {[%clk
0:00:53.1]} 21. Ne4 {[%clk 0:00:52.2]} 21... Rac8 {[%clk 0:00:43.1]} 22. Rac1
{[%clk 0:00:49.9]} 22... Qxa2 {[%clk 0:00:39.6]} 23. Qh4 {[%clk 0:00:44.5]}
23... Qf7 {[%clk 0:00:10.6]} 24. Ng5 {[%clk 0:00:30.3]} 24... Qg8 {[%clk
0:00:10.6]} 25. Qg4 {[%clk 0:00:24.7]} 25... Rxc1 {[%clk 0:00:08.8]} 26. Rxc1
{[%clk 0:00:23.4]} 26... h6 {[%clk 0:00:08.7]} 27. Ne6 {[%clk 0:00:20.2]} 27...
Rf6 {[%clk 0:00:09.3]} 28. Nxg7 {[%clk 0:00:14.7]} 28... Kxg7 {[%clk 0:00:09.2]}
29. Rc7 {[%clk 0:00:12.2]} 29... Qf7 {[%clk 0:00:09.6]} 30. f3 {[%clk
0:00:10.3]} 30... a6 {[%clk 0:00:09.5]} 31. Qc8 {[%clk 0:00:09.4]} 31... Re6
{[%clk 0:00:09.4]} 32. Qd8 {[%clk 0:00:08]} 32... Kf6 {[%clk 0:00:07.1]} 33. Qb8
{[%clk 0:00:06.4]} 33... Kg5 {[%clk 0:00:05.5]} 34. Rc8 {[%clk 0:00:05.3]} 34...
Qf4 {[%clk 0:00:05.4]} 35. Rf8 {[%clk 0:00:04.2]} 35... Rf6 {[%clk 0:00:04.9]}
36. Rxf6 {[%clk 0:00:02.5]} 36... Qxf6 {[%clk 0:00:04.9]} 37. Qc7 {[%clk
0:00:02]} 37... h5 {[%clk 0:00:05]} 38. Qd8 {[%clk 0:00:01.1]} 38... Kf5 {[%clk
0:00:04.8]} 0-1

[Event "Late-Titled-Tuesday-Blitz-May-28-2024"]
[Site "Chess.com"]
[Date "2024.05.28"]
[Round "8"]
[White "Iball95"]
[Black "karinachess1"]
[Result "0-1"]
[WhiteElo "2838"]
[BlackElo "2652"]
[TimeControl "180+1"]
[EndTime "15:28:49 PDT"]
[Termination "karinachess1 won on time"]

1. e4 {[%clk 0:03:00.9]} 1... e5 {[%clk 0:03:00.2]} 2. Nf3 {[%clk 0:02:58.8]}
2... Nc6 {[%clk 0:03:00.7]} 3. Nc3 {[%clk 0:02:59.3]} 3... Nf6 {[%clk
0:03:00.3]} 4. Bb5 {[%clk 0:02:59.1]} 4... Bd6 {[%clk 0:03:00.3]} 5. a3 {[%clk
0:02:58.8]} 5... O-O {[%clk 0:03:00.3]} 6. d3 {[%clk 0:02:59.2]} 6... a6 {[%clk
0:03:00.7]} 7. Bc4 {[%clk 0:02:59.5]} 7... Be7 {[%clk 0:03:00.1]} 8. h3 {[%clk
0:02:49.4]} 8... d6 {[%clk 0:03:00.5]} 9. Nd5 {[%clk 0:02:48.2]} 9... Nxd5
{[%clk 0:02:57.2]} 10. Bxd5 {[%clk 0:02:46.8]} 10... Be6 {[%clk 0:02:56.1]} 11.
c4 {[%clk 0:02:45.7]} 11... Bxd5 {[%clk 0:02:52.4]} 12. cxd5 {[%clk 0:02:46.6]}
12... Nb8 {[%clk 0:02:52.7]} 13. g4 {[%clk 0:02:43]} 13... c6 {[%clk 0:02:50.9]}
14. dxc6 {[%clk 0:02:41.6]} 14... Nxc6 {[%clk 0:02:46.9]} 15. O-O {[%clk
0:02:36]} 15... d5 {[%clk 0:02:40.2]} 16. Be3 {[%clk 0:01:45.9]} 16... Qd7
{[%clk 0:02:31.8]} 17. Kg2 {[%clk 0:01:41.1]} 17... Rad8 {[%clk 0:02:25.6]} 18.
Qb3 {[%clk 0:01:38.2]} 18... b5 {[%clk 0:02:08.9]} 19. Rac1 {[%clk 0:01:32.4]}
19... d4 {[%clk 0:01:51.9]} 20. Bd2 {[%clk 0:01:31.5]} 20... Bd6 {[%clk
0:01:52.4]} 21. Qa2 {[%clk 0:01:21.5]} 21... Ne7 {[%clk 0:01:51]} 22. a4 {[%clk
0:01:17.2]} 22... Rc8 {[%clk 0:01:32.5]} 23. Rfd1 {[%clk 0:00:52.5]} 23... Ng6
{[%clk 0:01:31.9]} 24. axb5 {[%clk 0:00:49.7]} 24... axb5 {[%clk 0:01:32]} 25.
Qd5 {[%clk 0:00:47.8]} 25... Kh8 {[%clk 0:01:04.2]} 26. Rxc8 {[%clk 0:00:43.5]}
26... Rxc8 {[%clk 0:01:05.1]} 27. Rc1 {[%clk 0:00:36.5]} 27... Rxc1 {[%clk
0:00:59.9]} 28. Bxc1 {[%clk 0:00:37.4]} 28... h6 {[%clk 0:01:00.3]} 29. Bd2
{[%clk 0:00:37.2]} 29... f6 {[%clk 0:00:53.2]} 30. Kg3 {[%clk 0:00:36.6]} 30...
Ne7 {[%clk 0:00:48.1]} 31. Qf7 {[%clk 0:00:31.1]} 31... Qd8 {[%clk 0:00:44]} 32.
Nh4 {[%clk 0:00:28.8]} 32... Qg8 {[%clk 0:00:40]} 33. Qxg8+ {[%clk 0:00:21.9]}
33... Kxg8 {[%clk 0:00:39.7]} 34. Kf3 {[%clk 0:00:19]} 34... Kf7 {[%clk
0:00:39.7]} 35. Ke2 {[%clk 0:00:19.2]} 35... Ke6 {[%clk 0:00:40.2]} 36. Ba5
{[%clk 0:00:18.4]} 36... Kd7 {[%clk 0:00:36.2]} 37. Kd1 {[%clk 0:00:16.8]} 37...
Bc7 {[%clk 0:00:30.7]} 38. Bb4 {[%clk 0:00:15.7]} 38... Bd6 {[%clk 0:00:31.2]}
39. Bxd6 {[%clk 0:00:15.1]} 39... Kxd6 {[%clk 0:00:32.1]} 40. Kc2 {[%clk
0:00:15.1]} 40... Kc6 {[%clk 0:00:28.5]} 41. Kb3 {[%clk 0:00:14.9]} 41... Kc5
{[%clk 0:00:29]} 42. Ka3 {[%clk 0:00:14.7]} 42... g5 {[%clk 0:00:20.2]} 43. b4+
{[%clk 0:00:13.8]} 43... Kc6 {[%clk 0:00:19.4]} 44. Nf3 {[%clk 0:00:08.1]} 44...
Ng6 {[%clk 0:00:19.3]} 45. Kb3 {[%clk 0:00:04.8]} 45... Nf4 {[%clk 0:00:19.5]}
46. Kc2 {[%clk 0:00:03.7]} 46... Nxh3 {[%clk 0:00:19.4]} 47. Nxe5+ {[%clk
0:00:01.6]} 47... fxe5 {[%clk 0:00:19.4]} 0-1

[Event "Late-Titled-Tuesday-Blitz-May-28-2024"]
[Site "Chess.com"]
[Date "2024.05.28"]
[Round "8"]
[White "ImportedItalianMaple"]
[Black "nocnypako"]
[Result "0-1"]
[WhiteElo "2532"]
[BlackElo "2696"]
[TimeControl "180+1"]
[EndTime "15:28:50 PDT"]
[Termination "nocnypako won on time"]

1. e4 {[%clk 0:03:00]} 1... e6 {[%clk 0:02:59.5]} 2. d4 {[%clk 0:02:58.5]} 2...
d5 {[%clk 0:03:00.1]} 3. Nd2 {[%clk 0:02:59]} 3... Nf6 {[%clk 0:02:58.1]} 4. e5
{[%clk 0:02:56.8]} 4... Nfd7 {[%clk 0:02:58.6]} 5. Bd3 {[%clk 0:02:57.2]} 5...
c5 {[%clk 0:02:59.2]} 6. c3 {[%clk 0:02:57.7]} 6... b6 {[%clk 0:02:59.7]} 7. Ne2
{[%clk 0:02:43.8]} 7... Ba6 {[%clk 0:02:59.2]} 8. Bxa6 {[%clk 0:02:44.2]} 8...
Nxa6 {[%clk 0:02:59.9]} 9. h4 {[%clk 0:02:40.6]} 9... Be7 {[%clk 0:02:59]} 10.
h5 {[%clk 0:02:40]} 10... h6 {[%clk 0:02:51.6]} 11. Nf3 {[%clk 0:02:38.4]} 11...
Qc7 {[%clk 0:02:46.7]} 12. Rh3 {[%clk 0:02:36.9]} 12... Rc8 {[%clk 0:02:34.3]}
13. Rg3 {[%clk 0:02:36.2]} 13... Bf8 {[%clk 0:02:29.6]} 14. Qd3 {[%clk
0:02:04.5]} 14... Qb7 {[%clk 0:02:16.2]} 15. a3 {[%clk 0:01:54.9]} 15... b5
{[%clk 0:02:15.1]} 16. b4 {[%clk 0:01:48.1]} 16... cxb4 {[%clk 0:02:00.1]} 17.
axb4 {[%clk 0:01:47]} 17... Bxb4 {[%clk 0:01:48.8]} 18. Rxg7 {[%clk 0:01:32.7]}
18... Bf8 {[%clk 0:01:45.5]} 19. Rg4 {[%clk 0:01:29.6]} 19... Rc6 {[%clk
0:01:44.5]} 20. Kf1 {[%clk 0:01:20.8]} 20... b4 {[%clk 0:01:42.2]} 21. cxb4
{[%clk 0:01:10.8]} 21... Nxb4 {[%clk 0:01:40.5]} 22. Qb3 {[%clk 0:01:09.2]}
22... Qb5 {[%clk 0:01:17.5]} 23. g3 {[%clk 0:00:51.1]} 23... a5 {[%clk
0:01:08.2]} 24. Ba3 {[%clk 0:00:32.6]} 24... Rc2 {[%clk 0:01:03.1]} 25. Re1
{[%clk 0:00:30.4]} 25... Qc4 {[%clk 0:00:59.9]} 26. Qxc4 {[%clk 0:00:24.9]}
26... dxc4 {[%clk 0:01:00.8]} 27. Bxb4 {[%clk 0:00:16.6]} 27... axb4 {[%clk
0:00:50.5]} 28. Ra1 {[%clk 0:00:16.9]} 28... Be7 {[%clk 0:00:50.8]} 29. Ra8+
{[%clk 0:00:15.1]} 29... Bd8 {[%clk 0:00:51.1]} 30. d5 {[%clk 0:00:15.8]} 30...
b3 {[%clk 0:00:47.5]} 31. Ra7 {[%clk 0:00:07]} 31... b2 {[%clk 0:00:45.1]} 32.
Rb7 {[%clk 0:00:06]} 32... Rc1+ {[%clk 0:00:42.9]} 33. Nxc1 {[%clk 0:00:06.6]}
33... bxc1=Q+ {[%clk 0:00:42.6]} 34. Kg2 {[%clk 0:00:07.5]} 34... exd5 {[%clk
0:00:32.9]} 35. Nd4 {[%clk 0:00:08]} 35... Qd1 {[%clk 0:00:29.5]} 36. Rf4 {[%clk
0:00:06.7]} 36... Nxe5 {[%clk 0:00:27.4]} 37. Nf5 {[%clk 0:00:06.6]} 37... Bg5
{[%clk 0:00:18.6]} 38. Nd6+ {[%clk 0:00:06.5]} 38... Kd8 {[%clk 0:00:18.9]} 39.
Nxf7+ {[%clk 0:00:05.9]} 39... Nxf7 {[%clk 0:00:17.7]} 40. Rfxf7 {[%clk
0:00:06.8]} 40... Qd3 {[%clk 0:00:14.8]} 41. Rfd7+ {[%clk 0:00:06.8]} 41... Ke8
{[%clk 0:00:15]} 42. Rdc7 {[%clk 0:00:05.4]} 42... Qe4+ {[%clk 0:00:14.4]} 43.
f3 {[%clk 0:00:06]} 43... Qe2+ {[%clk 0:00:13.7]} 44. Kh3 {[%clk 0:00:06.6]}
44... Qxf3 {[%clk 0:00:13.8]} 45. Rb8+ {[%clk 0:00:03.5]} 45... Bd8 {[%clk
0:00:13.8]} 46. Rcc8 {[%clk 0:00:04.4]} 46... Kd7 {[%clk 0:00:14]} 0-1

[Event "Late-Titled-Tuesday-Blitz-May-28-2024"]
[Site "Chess.com"]
[Date "2024.05.28"]
[Round "8"]
[White "lamomiablanca"]
[Black "colegiodemadrid"]
[Result "0-1"]
[WhiteElo "2621"]
[BlackElo "2526"]
[TimeControl "180+1"]
[EndTime "15:28:50 PDT"]
[Termination "colegiodemadrid won on time"]

1. e4 {[%clk 0:03:00.9]} 1... c5 {[%clk 0:02:56.5]} 2. Nf3 {[%clk 0:02:59.9]}
2... e6 {[%clk 0:02:56.9]} 3. d4 {[%clk 0:02:58.6]} 3... cxd4 {[%clk 0:02:57.8]}
4. Nxd4 {[%clk 0:02:58.7]} 4... Nf6 {[%clk 0:02:58.6]} 5. Nc3 {[%clk 0:02:58.2]}
5... d6 {[%clk 0:02:59.1]} 6. Be3 {[%clk 0:02:57.2]} 6... a6 {[%clk 0:02:58.9]}
7. Qd2 {[%clk 0:02:56.1]} 7... b5 {[%clk 0:02:58.3]} 8. f3 {[%clk 0:02:55.5]}
8... Bb7 {[%clk 0:02:58.3]} 9. O-O-O {[%clk 0:02:55]} 9... h5 {[%clk 0:02:58]}
10. Kb1 {[%clk 0:02:54.3]} 10... Nbd7 {[%clk 0:02:58.5]} 11. Bd3 {[%clk
0:02:53.3]} 11... Rc8 {[%clk 0:02:59.1]} 12. Rhe1 {[%clk 0:02:51.5]} 12... Be7
{[%clk 0:02:57.9]} 13. h3 {[%clk 0:02:49.5]} 13... h4 {[%clk 0:02:57.4]} 14. f4
{[%clk 0:02:48.7]} 14... Rxc3 {[%clk 0:02:54.4]} 15. Qxc3 {[%clk 0:02:47.9]}
15... Nxe4 {[%clk 0:02:54.9]} 16. Bxe4 {[%clk 0:02:47.3]} 16... Bxe4 {[%clk
0:02:55.8]} 17. Bf2 {[%clk 0:02:27.7]} 17... d5 {[%clk 0:02:51.9]} 18. Nxe6
{[%clk 0:01:41.8]} 18... fxe6 {[%clk 0:02:45.7]} 19. Rxe4 {[%clk 0:01:41.2]}
19... dxe4 {[%clk 0:02:17.7]} 20. Qxg7 {[%clk 0:01:40]} 20... Bf6 {[%clk
0:02:13.4]} 21. Qg6+ {[%clk 0:01:35.5]} 21... Ke7 {[%clk 0:02:11.9]} 22. Qxe4
{[%clk 0:01:20.5]} 22... Qc7 {[%clk 0:02:03.6]} 23. c3 {[%clk 0:01:03]} 23...
Kf7 {[%clk 0:01:38.4]} 24. f5 {[%clk 0:00:55.2]} 24... Nf8 {[%clk 0:01:35.2]}
25. Re1 {[%clk 0:00:45.3]} 25... Qd7 {[%clk 0:01:28.7]} 26. fxe6+ {[%clk
0:00:32.6]} 26... Nxe6 {[%clk 0:01:29.6]} 27. Qf5 {[%clk 0:00:27.6]} 27... Nf8
{[%clk 0:01:29.2]} 28. Qf3 {[%clk 0:00:22.2]} 28... Qd6 {[%clk 0:00:58.6]} 29.
Bd4 {[%clk 0:00:17.2]} 29... Nd7 {[%clk 0:00:57.5]} 30. Rf1 {[%clk 0:00:15.3]}
30... Rh6 {[%clk 0:00:55.9]} 31. Qe3 {[%clk 0:00:14.2]} 31... Rg6 {[%clk
0:00:53.1]} 32. Qe4 {[%clk 0:00:13.3]} 32... Qe6 {[%clk 0:00:50.8]} 33. Qxh4
{[%clk 0:00:11.8]} 33... Kg7 {[%clk 0:00:45.7]} 34. Re1 {[%clk 0:00:09.3]} 34...
Qf5+ {[%clk 0:00:41.3]} 35. Ka1 {[%clk 0:00:08.9]} 35... Ne5 {[%clk 0:00:11.7]}
36. a4 {[%clk 0:00:07.7]} 36... Bxh4 {[%clk 0:00:11.3]} 37. Rxe5 {[%clk
0:00:07.1]} 37... Qxe5 {[%clk 0:00:09.7]} 38. Bxe5+ {[%clk 0:00:07]} 38... Bf6
{[%clk 0:00:10.1]} 39. Bf4 {[%clk 0:00:06.8]} 39... Rxg2 {[%clk 0:00:10]} 40.
axb5 {[%clk 0:00:06.7]} 40... axb5 {[%clk 0:00:10.9]} 41. h4 {[%clk 0:00:06.5]}
41... Rf2 {[%clk 0:00:11.1]} 42. Bd6 {[%clk 0:00:05.3]} 42... Bxh4 {[%clk
0:00:10.8]} 0-1

[Event "Late-Titled-Tuesday-Blitz-May-28-2024"]
[Site "Chess.com"]
[Date "2024.05.28"]
[Round "8"]
[White "DonJuanEGenaro"]
[Black "chess_sharparchitect"]
[Result "0-1"]
[WhiteElo "2043"]
[BlackElo "2342"]
[TimeControl "180+1"]
[EndTime "15:28:55 PDT"]
[Termination "chess_sharparchitect won on time"]

1. d4 {[%clk 0:02:57.1]} 1... Nf6 {[%clk 0:03:00]} 2. Nf3 {[%clk 0:02:57.4]}
2... d5 {[%clk 0:02:59.8]} 3. c4 {[%clk 0:02:56.9]} 3... e6 {[%clk 0:02:57.6]}
4. Nc3 {[%clk 0:02:55.1]} 4... c6 {[%clk 0:02:54.6]} 5. g3 {[%clk 0:02:54.5]}
5... Nbd7 {[%clk 0:02:44.4]} 6. Bg2 {[%clk 0:02:54.2]} 6... Bb4 {[%clk
0:02:39.7]} 7. O-O {[%clk 0:02:52.8]} 7... O-O {[%clk 0:02:31.3]} 8. Qc2 {[%clk
0:02:39.5]} 8... c5 {[%clk 0:02:18.3]} 9. cxd5 {[%clk 0:02:27.6]} 9... Bxc3
{[%clk 0:02:00.3]} 10. Qxc3 {[%clk 0:02:10.6]} 10... Nxd5 {[%clk 0:01:59.2]} 11.
Qc2 {[%clk 0:02:03]} 11... Qb6 {[%clk 0:01:34.7]} 12. dxc5 {[%clk 0:01:44.5]}
12... Nxc5 {[%clk 0:01:33.8]} 13. Ng5 {[%clk 0:01:40.2]} 13... g6 {[%clk
0:00:41.5]} 14. Bxd5 {[%clk 0:01:37.6]} 14... exd5 {[%clk 0:00:41.1]} 15. Be3
{[%clk 0:01:37.3]} 15... d4 {[%clk 0:00:25.4]} 16. Bxd4 {[%clk 0:01:36.3]} 16...
Qd8 {[%clk 0:00:25.7]} 17. Qxc5 {[%clk 0:01:33.2]} 17... Bf5 {[%clk 0:00:24.1]}
18. Nf3 {[%clk 0:01:04.8]} 18... Rc8 {[%clk 0:00:22.1]} 19. Qb4 {[%clk
0:01:00.9]} 19... b6 {[%clk 0:00:18.4]} 20. Bc3 {[%clk 0:00:58.8]} 20... a5
{[%clk 0:00:17]} 21. Qf4 {[%clk 0:00:57.2]} 21... Rc5 {[%clk 0:00:15.6]} 22. e4
{[%clk 0:00:54.4]} 22... Rc4 {[%clk 0:00:13.5]} 23. Qh6 {[%clk 0:00:49]} 23...
Rxc3 {[%clk 0:00:13.9]} 24. exf5 {[%clk 0:00:36.7]} 24... Rxf3 {[%clk
0:00:12.8]} 25. fxg6 {[%clk 0:00:35.2]} 25... fxg6 {[%clk 0:00:12.6]} 26. Rad1
{[%clk 0:00:32.8]} 26... Qf6 {[%clk 0:00:09.8]} 27. Rd7 {[%clk 0:00:31.2]} 27...
Rf7 {[%clk 0:00:08.3]} 28. Rd8+ {[%clk 0:00:29.3]} 28... Qxd8 {[%clk 0:00:07.7]}
29. Qc1 {[%clk 0:00:26.7]} 29... Qd4 {[%clk 0:00:06.9]} 30. Qe1 {[%clk 0:00:21]}
30... Kg7 {[%clk 0:00:06.5]} 31. Kg2 {[%clk 0:00:16.2]} 31... Qxb2 {[%clk
0:00:06]} 32. Kg1 {[%clk 0:00:13.4]} 32... Qd4 {[%clk 0:00:05.9]} 33. Qe2 {[%clk
0:00:12.3]} 33... R3f5 {[%clk 0:00:05.6]} 34. Kg2 {[%clk 0:00:08.1]} 34... h6
{[%clk 0:00:05.9]} 35. h3 {[%clk 0:00:06.8]} 35... Kh7 {[%clk 0:00:05.9]} 36. f4
{[%clk 0:00:05.8]} 36... Rd5 {[%clk 0:00:04.1]} 37. Rf2 {[%clk 0:00:04.7]} 37...
Rdd7 {[%clk 0:00:03.7]} 38. Qe6 {[%clk 0:00:03.2]} 38... Qd5+ {[%clk 0:00:03.3]}
39. Qxd5 {[%clk 0:00:01.9]} 39... Rxd5 {[%clk 0:00:04.2]} 40. g4 {[%clk
0:00:02]} 40... Rfd7 {[%clk 0:00:04.5]} 41. Kg3 {[%clk 0:00:01.9]} 41... Rd3+
{[%clk 0:00:04.6]} 42. Kh4 {[%clk 0:00:01.9]} 42... Re3 {[%clk 0:00:04.7]} 0-1

[Event "Late-Titled-Tuesday-Blitz-May-28-2024"]
[Site "Chess.com"]
[Date "2024.05.28"]
[Round "8"]
[White "rdarruda"]
[Black "stollenmonster"]
[Result "0-1"]
[WhiteElo "2555"]
[BlackElo "2837"]
[TimeControl "180+1"]
[EndTime "15:28:56 PDT"]
[Termination "stollenmonster won on time"]

1. Nf3 {[%clk 0:02:55.8]} 1... Nf6 {[%clk 0:02:59.6]} 2. d4 {[%clk 0:02:55.5]}
2... e6 {[%clk 0:03:00.1]} 3. c4 {[%clk 0:02:54.3]} 3... d5 {[%clk 0:03:01]} 4.
e3 {[%clk 0:02:54.2]} 4... Be7 {[%clk 0:03:01]} 5. Nc3 {[%clk 0:02:54.3]} 5...
Ne4 {[%clk 0:03:00.8]} 6. Bd3 {[%clk 0:02:54]} 6... f5 {[%clk 0:03:00.6]} 7. O-O
{[%clk 0:02:50.6]} 7... c6 {[%clk 0:03:00.2]} 8. Ne5 {[%clk 0:02:50.3]} 8... O-O
{[%clk 0:03:00.6]} 9. f3 {[%clk 0:02:50.3]} 9... Nxc3 {[%clk 0:03:01]} 10. bxc3
{[%clk 0:02:50.6]} 10... Nd7 {[%clk 0:03:01.9]} 11. Nxd7 {[%clk 0:02:50.3]}
11... Bxd7 {[%clk 0:03:02.8]} 12. e4 {[%clk 0:02:48.8]} 12... fxe4 {[%clk
0:03:02.7]} 13. fxe4 {[%clk 0:02:48.4]} 13... Rxf1+ {[%clk 0:03:03.3]} 14. Qxf1
{[%clk 0:02:48.5]} 14... Bg5 {[%clk 0:03:00.7]} 15. cxd5 {[%clk 0:02:44.2]}
15... cxd5 {[%clk 0:03:00.2]} 16. exd5 {[%clk 0:02:39]} 16... exd5 {[%clk
0:03:01.1]} 17. Qf3 {[%clk 0:02:35.7]} 17... Be8 {[%clk 0:02:39.7]} 18. c4
{[%clk 0:01:51.2]} 18... Bxc1 {[%clk 0:02:03.7]} 19. Rxc1 {[%clk 0:01:46.4]}
19... Rc8 {[%clk 0:01:36.9]} 20. Rf1 {[%clk 0:01:28.5]} 20... Bc6 {[%clk
0:00:20]} 21. Qf7+ {[%clk 0:01:26.8]} 21... Kh8 {[%clk 0:00:19.7]} 22. Qh5
{[%clk 0:01:17.7]} 22... Qg8 {[%clk 0:00:20.1]} 23. cxd5 {[%clk 0:00:55]} 23...
Bd7 {[%clk 0:00:11.8]} 24. Qf7 {[%clk 0:00:39.1]} 24... Rd8 {[%clk 0:00:07.6]}
25. Qxg8+ {[%clk 0:00:28]} 25... Kxg8 {[%clk 0:00:08.5]} 26. Rc1 {[%clk
0:00:24.2]} 26... Kf8 {[%clk 0:00:07.1]} 27. Bxh7 {[%clk 0:00:21.1]} 27... Ke7
{[%clk 0:00:06.2]} 28. Be4 {[%clk 0:00:19.9]} 28... Kd6 {[%clk 0:00:06.2]} 29.
Rf1 {[%clk 0:00:19.8]} 29... Re8 {[%clk 0:00:05.8]} 30. Bf3 {[%clk 0:00:19.9]}
30... Re3 {[%clk 0:00:05.3]} 31. Rb1 {[%clk 0:00:18.1]} 31... b6 {[%clk
0:00:05.1]} 32. Kf2 {[%clk 0:00:16.2]} 32... Ra3 {[%clk 0:00:05]} 33. Rb2 {[%clk
0:00:16]} 33... Rc3 {[%clk 0:00:04.6]} 34. Rd2 {[%clk 0:00:15.8]} 34... b5
{[%clk 0:00:04.4]} 35. Be4 {[%clk 0:00:15.7]} 35... a5 {[%clk 0:00:04.4]} 36.
Rc2 {[%clk 0:00:12.9]} 36... Ra3 {[%clk 0:00:04.1]} 37. h4 {[%clk 0:00:12]}
37... b4 {[%clk 0:00:04.5]} 38. Rb2 {[%clk 0:00:08.9]} 38... Rc3 {[%clk
0:00:03.7]} 39. Ke2 {[%clk 0:00:08.4]} 39... Bb5+ {[%clk 0:00:03.6]} 40. Kd2
{[%clk 0:00:08.2]} 40... Rg3 {[%clk 0:00:03.7]} 41. Bf3 {[%clk 0:00:08]} 41...
Bc4 {[%clk 0:00:03.2]} 42. Ke3 {[%clk 0:00:06.1]} 42... Bxd5 {[%clk 0:00:03.4]}
43. Kf4 {[%clk 0:00:06.3]} 43... Rg6 {[%clk 0:00:03.7]} 0-1